bitfinex/quotes_SOLUSD_20250108
["timestamp","ask_amount","ask_price","bid_price","bid_amount"]
[1736356773594,20.0,192.09,191.89,74.87259274]
[1736356773768,20.0,192.09,191.87,51.09570874]
[1736356774082,20.0,192.09,191.88,23.776884]
[1736356774296,23.776884,192.1,191.88,26.57366338]
[1736356774467,11.3811,192.12,191.91,50.10624937]
[1736356774669,11.3811,192.12,192.06,16.30502303]
[1736356774866,266.28524321,192.22,192.11,16.02368131]
[1736356775095,30.0,192.13,191.91,26.32936537]
[1736356775390,30.0,192.15,191.93,5.0]
[1736356775565,16.023681,192.21,191.94,23.776884]
[1736356775566,30.0,192.13,191.94,23.776884]
[1736356775763,30.0,192.15,191.94,23.776884]
[1736356775983,30.0,192.13,191.9,31.72206605]
[1736356776185,30.0,192.16,191.92,23.776884]
[1736356776489,20.0,192.12,191.94,28.776884]
[1736356776700,30.0,192.16,191.96,23.776884]
[1736356777096,30.0,192.16,191.93,5.0]
[1736356777305,20.0,192.13,191.94,5.0]
[1736356777603,20.0,192.13,191.93,5.0]
[1736356777604,30.0,192.18,191.98,28.776884]
[1736356777805,20.0,192.13,191.93,5.0]
[1736356777974,20.0,192.09,191.87,5.0]
[1736356778171,50.0,192.09,191.87,5.0]
[1736356778588,50.0,192.09,191.85,26.9928032]
[1736356778772,20.0,192.02,191.83,26.47877755]
[1736356778980,20.0,192.02,191.83,31.47877755]
[1736356779281,20.0,192.02,191.83,26.47877755]
[1736356779591,20.0,192.02,191.83,10.0]
[1736356779790,20.0,191.97,191.78,5.0]
[1736356779968,20.0,191.97,191.8,5.0]
[1736356780371,20.0,191.99,191.8,5.0]
[1736356780671,20.0,191.99,191.8,10.0]
[1736356781180,20.0,191.99,191.79,5.0]
[1736356781378,20.0,191.99,191.79,10.0]
[1736356781783,20.0,191.99,191.77,56.09570874]
[1736356782010,20.0,191.95,191.79,5.0]
[1736356782300,20.0,191.95,191.73,56.09570874]
[1736356782503,20.0,191.95,191.72,5.0]
[1736356782708,30.0,191.98,191.75,5.0]
[1736356782709,20.0,191.93,191.75,5.0]
[1736356783077,30.0,191.98,191.76,5.0]
[1736356783348,30.0,191.98,191.75,5.0]
[1736356783505,20.0,191.93,191.73,5.0]
[1736356784221,20.0,191.95,191.76,23.776884]
[1736356784709,20.0,191.97,191.76,33.776884]
[1736356784902,20.0,191.97,191.76,28.776884]
[1736356785107,50.0,191.97,191.74,5.0]
[1736356785503,20.0,191.96,191.76,5.0]
[1736356785725,20.0,191.96,191.8,23.776884]
[1736356786224,30.0,192.01,191.81,23.776884]
[1736356786403,20.0,191.96,191.8,5.0]
[1736356786604,20.0,191.96,191.78,5.0]
[1736356786813,20.0,191.96,191.79,23.776884]
[1736356787017,20.0,191.94,191.75,5.0]
[1736356787232,20.0,191.94,191.74,5.0]
[1736356787415,20.0,191.94,191.75,28.776884]
[1736356787723,20.0,191.94,191.75,5.0]
[1736356787930,20.0,191.94,191.76,23.776884]
[1736356788329,20.0,191.94,191.75,10.0]
[1736356788531,20.0,191.9,191.71,56.09570874]
[1736356788732,20.0,191.9,191.71,5.0]
[1736356788928,20.0,191.9,191.71,23.776884]
[1736356789102,20.0,191.9,191.7,5.0]
[1736356789103,20.0,191.9,191.72,5.0]
[1736356789508,20.0,191.92,191.72,10.0]
[1736356789707,20.0,191.92,191.73,33.776884]
[1736356790006,20.0,191.92,191.61,10.0]
[1736356790007,30.0,191.89,191.67,5.0]
[1736356790330,20.0,191.84,191.65,5.0]
[1736356790717,20.0,191.8,191.6,5.0]
[1736356790909,20.0,191.8,191.63,5.0]
[1736356791232,30.0,191.89,191.67,5.0]
[1736356791604,30.0,191.89,191.66,5.0]
[1736356791826,20.0,191.86,191.65,5.0]
[1736356792134,20.0,191.81,191.62,5.0]
[1736356792331,20.0,191.81,191.63,5.0]
[1736356792513,20.0,191.81,191.64,5.0]
[1736356792712,20.0,191.83,191.65,28.776884]
[1736356793119,30.0,191.88,191.67,23.776884]
[1736356793447,261.02488996,191.9,191.64,5.0]
[1736356793448,50.0,191.87,191.64,5.0]
[1736356793754,20.0,191.82,191.63,5.0]
[1736356793925,20.0,191.82,191.6,5.0]
[1736356794247,20.0,191.76,191.56,16.6701]
[1736356794444,20.0,191.76,191.58,23.776884]
[1736356794936,20.0,191.76,191.56,5.0]
[1736356795131,30.0,191.79,191.56,10.0]
[1736356795431,30.0,191.79,191.51,0.78275609]
[1736356795432,20.0,191.76,191.58,28.776884]
[1736356795949,20.0,191.76,191.56,23.776884]
[1736356796117,20.0,191.76,191.56,28.776884]
[1736356796313,20.0,191.76,191.47,13.0568]
[1736356796314,20.0,191.75,191.54,5.0]
[1736356796536,20.0,191.73,191.54,5.0]
[1736356796852,20.0,191.71,191.53,5.0]
[1736356797207,30.0,191.79,191.57,5.0]
[1736356797427,30.0,191.77,191.56,5.0]
[1736356797629,20.0,191.74,191.56,5.0]
[1736356797825,20.0,191.74,191.58,23.776884]
[1736356798032,30.0,191.81,191.6,28.776884]
[1736356798229,30.0,191.81,191.6,33.776884]
[1736356798432,30.0,191.85,191.64,23.776884]
[1736356798638,30.0,191.83,191.64,23.776884]
[1736356798812,30.0,191.85,191.63,28.776884]
[1736356799346,30.0,191.85,191.64,5.0]
[1736356799638,20.0,191.82,191.64,5.0]
[1736356800009,20.0,191.82,191.65,23.776884]
[1736356800750,0.3037,191.85,191.65,33.776884]
[1736356800923,30.3037,191.85,191.64,5.0]
[1736356801127,0.3037,191.85,191.67,10.0]
[1736356801453,0.3037,191.85,191.68,5.0]
[1736356801659,20.0,191.84,191.67,5.0]
[1736356801838,0.3037,191.85,191.6,5.0]
[1736356801839,20.0,191.8,191.6,5.0]
[1736356802012,20.0,191.78,191.59,5.0]
[1736356802216,20.0,191.76,191.58,18.138]
[1736356802521,30.0,191.77,191.52,12.55]
[1736356802744,20.0,191.72,191.55,5.0]
[1736356802946,20.0,191.72,191.52,7.55]
[1736356803255,20.0,191.7,191.52,2.55]
[1736356803416,20.0,191.68,191.52,2.55]
[1736356803618,20.0,191.66,191.52,2.55]
[1736356804143,20.0,191.64,191.52,2.55]
[1736356804359,20.0,191.62,191.52,2.55]
[1736356805055,30.0,191.67,191.52,2.55]
[1736356805219,0.3037,191.7,191.52,7.55]
[1736356805625,0.3037,191.7,191.54,5.0]
[1736356805883,0.3037,191.7,191.53,23.776884]
[1736356805884,0.3037,191.7,191.55,25.87846528]
[1736356806065,30.0,191.75,191.52,7.55]
[1736356806374,20.0,191.68,191.52,2.55]
[1736356806556,0.3037,191.77,191.52,2.55]
[1736356806557,23.776884,191.63,191.52,2.55]
[1736356806754,30.0,191.69,191.52,2.55]
[1736356806982,30.0,191.71,191.52,2.55]
[1736356807161,30.0,191.67,191.52,2.55]
[1736356807363,20.0,191.64,191.52,2.55]
[1736356808080,20.0,191.67,191.54,5.0]
[1736356808277,261.02488996,191.73,191.53,5.0]
[1736356808455,261.02488996,191.73,191.52,2.55]
[1736356808456,20.0,191.64,191.52,2.55]
[1736356808663,20.0,191.62,191.52,2.55]
[1736356809264,30.0,191.66,191.52,2.55]
[1736356809464,20.0,191.63,191.52,2.55]
[1736356809981,20.0,191.62,191.48,5.0]
[1736356810357,30.0,191.66,191.47,23.776884]
[1736356810553,20.0,191.63,191.48,5.0]
[1736356810760,20.0,191.63,191.49,5.0]
[1736356810961,261.02488996,191.73,191.53,5.0]
[1736356811160,30.0,191.74,191.58,5.0]
[1736356811486,30.0,191.78,191.58,5.0]
[1736356811660,23.776884,191.72,191.5,5.0]
[1736356811861,20.0,191.65,191.5,5.0]
[1736356812063,20.0,191.65,191.47,12.6947]
[1736356812064,30.0,191.72,191.53,5.0]
[1736356812466,20.0,191.69,191.53,5.0]
[1736356812667,20.0,191.68,191.53,5.0]
[1736356813108,20.0,191.67,191.49,5.0]
[1736356813306,20.0,191.62,191.47,12.6947]
[1736356814410,20.0,191.6,191.47,12.6947]
[1736356814699,20.0,191.6,191.42,5.0]
[1736356814900,20.0,191.58,191.41,8.5032]
[1736356815185,30.0,191.61,191.4,12.4317]
[1736356815186,20.0,191.54,191.4,12.4317]
[1736356815698,50.0,191.54,191.34,5.0]
[1736356815904,50.0,191.54,191.35,5.0]
[1736356816072,30.0,191.56,191.38,5.0]
[1736356816274,20.0,191.55,191.38,10.0]
[1736356816577,20.0,191.55,191.36,10.0]
[1736356816763,20.0,191.51,191.38,10.0]
[1736356816969,20.0,191.51,191.4,5.0]
[1736356817169,0.3037,191.61,191.42,5.0]
[1736356817367,30.0,191.64,191.45,5.0]
[1736356817577,30.0,191.62,191.43,5.0]
[1736356817980,30.0,191.62,191.43,10.0]
[1736356818177,20.0,191.58,191.43,10.0]
[1736356818382,261.02488996,191.65,191.47,5.0]
[1736356818681,261.02488996,191.65,191.49,5.0]
[1736356818882,30.0,191.63,191.48,12.9167]
[1736356819282,20.0,191.6,191.48,12.9167]
[1736356820296,20.0,191.62,191.48,12.9167]
[1736356820866,261.02488996,191.65,191.49,5.0]
[1736356821072,30.0,191.69,191.5,10.0]
[1736356821290,30.0,191.69,191.5,5.0]
[1736356821493,30.0,191.65,191.48,16.7298]
[1736356821872,20.0,191.62,191.48,16.7298]
[1736356822175,20.0,191.6,191.48,16.7298]
[1736356822711,30.0,191.7,191.51,5.0]
[1736356822878,30.0,191.7,191.52,5.0]
[1736356823081,20.0,191.67,191.52,5.0]
[1736356823276,30.0,191.65,191.48,16.7298]
[1736356823487,20.0,191.6,191.48,16.7298]
[1736356824188,20.0,191.62,191.48,16.7298]
[1736356824701,20.0,191.64,191.48,16.7298]
[1736356825005,50.0,191.64,191.48,16.7298]
[1736356825188,20.0,191.61,191.48,16.7298]
[1736356825573,20.0,191.61,191.44,5.0]
[1736356825574,20.0,191.57,191.4,5.0]
[1736356825774,20.0,191.55,191.42,5.0]
[1736356825993,20.0,191.55,191.45,5.0]
[1736356826379,20.0,191.59,191.45,5.0]
[1736356826578,50.0,191.59,191.41,5.0]
[1736356826802,50.0,191.59,191.4,5.0]
[1736356827023,20.0,191.54,191.37,10.0]
[1736356827220,20.0,191.54,191.39,5.0]
[1736356827520,20.0,191.54,191.37,5.0]
[1736356827704,20.0,191.52,191.37,5.0]
[1736356827894,20.0,191.5,191.35,5.0]
[1736356828081,20.0,191.5,191.35,10.0]
[1736356828280,20.0,191.5,191.36,5.0]
[1736356828505,30.0,191.56,191.38,5.0]
[1736356828689,30.0,191.54,191.37,18.0771]
[1736356828893,20.0,191.53,191.38,5.0]
[1736356829095,20.0,191.53,191.37,23.0771]
[1736356829400,30.0,191.55,191.38,5.0]
[1736356829604,20.0,191.52,191.38,10.0]
[1736356829781,20.0,191.52,191.4,5.0]
[1736356829983,20.0,191.52,191.38,10.0]
[1736356830196,20.0,191.54,191.4,10.0]
[1736356830785,30.0,191.62,191.45,10.0]
[1736356831185,30.0,191.62,191.44,5.0]
[1736356831186,20.0,191.59,191.44,5.0]
[1736356831488,30.0,191.59,191.41,10.0]
[1736356831677,20.0,191.56,191.41,5.0]
[1736356831881,20.0,191.56,191.4,10.0]
[1736356832081,20.0,191.56,191.41,10.0]
[1736356832277,23.776884,191.58,191.4,10.0]
[1736356832485,20.0,191.55,191.42,5.0]
[1736356832688,20.0,191.55,191.41,10.0]
[1736356832988,20.0,191.56,191.41,5.0]
[1736356833188,15.66,191.66,191.41,5.0]
[1736356833189,20.0,191.54,191.41,5.0]
[1736356833408,20.0,191.54,191.4,5.0]
[1736356833601,20.0,191.56,191.41,5.0]
[1736356833911,30.0,191.61,191.45,5.0]
[1736356834200,20.0,191.59,191.45,10.0]
[1736356834425,23.776884,191.62,191.45,5.0]
[1736356834598,291.64486214,191.63,191.46,10.0]
[1736356834903,291.64486214,191.63,191.46,5.0]
[1736356835103,50.0,191.6,191.42,5.0]
[1736356835403,20.0,191.55,191.38,10.0]
[1736356835602,20.0,191.55,191.39,5.0]
[1736356835783,20.0,191.51,191.37,13.0771]
[1736356835984,20.0,191.5,191.37,13.0771]
[1736356836809,20.0,191.5,191.37,18.0771]
[1736356836993,20.0,191.5,191.37,13.0771]
[1736356838000,30.0,191.56,191.38,10.0]
[1736356838204,20.0,191.52,191.37,13.0771]
[1736356838388,20.0,191.5,191.37,13.0771]
[1736356839190,20.0,191.43,191.3,13.1255]
[1736356839389,20.0,191.41,191.3,4.66694948]
[1736356839697,20.0,191.41,191.33,5.0]
[1736356839901,30.0,191.5,191.33,5.0]
[1736356840207,291.64486214,191.54,191.36,5.0]
[1736356840381,291.64486214,191.54,191.38,5.0]
[1736356840586,7.48281247,191.57,191.3,4.66694948]
[1736356840587,7.48281247,191.55,191.42,5.0]
[1736356840786,21.04494354,191.53,191.39,5.0]
[1736356841101,20.0,191.5,191.34,5.0]
[1736356841297,20.0,191.5,191.38,5.0]
[1736356841510,20.0,191.5,191.36,10.0]
[1736356841889,20.0,191.49,191.37,5.0]
[1736356842081,20.0,191.49,191.36,5.0]
[1736356842286,20.0,191.48,191.35,5.0]
[1736356842592,20.0,191.48,191.37,5.0]
[1736356842786,20.0,191.48,191.3,4.66694948]
[1736356842787,21.04494354,191.53,191.4,5.0]
[1736356843207,20.0,191.5,191.4,5.0]
[1736356843439,21.04494354,191.53,191.43,5.0]
[1736356843635,21.04494354,191.53,191.45,5.0]
[1736356843945,21.04494354,191.53,191.47,5.0]
[1736356845423,30.0,191.69,191.53,5.0]
[1736356845621,23.776884,191.65,191.49,10.0]
[1736356845838,20.0,191.62,191.49,10.0]
[1736356846017,20.0,191.61,191.5,5.0]
[1736356846217,23.776884,191.6,191.44,17.5021]
[1736356846538,50.0,191.61,191.46,10.0]
[1736356846831,50.0,191.61,191.44,12.5021]
[1736356846832,50.0,191.61,191.45,5.0]
[1736356847035,23.776884,191.6,191.44,17.5021]
[1736356847234,20.0,191.56,191.44,12.5021]
[1736356847533,20.0,191.53,191.38,13.196]
[1736356847705,20.0,191.53,191.4,5.0]
[1736356847912,20.0,191.53,191.4,10.0]
[1736356848109,20.0,191.53,191.38,13.196]
[1736356848328,20.0,191.53,191.39,5.0]
[1736356848539,20.0,191.53,191.48,5.0]
[1736356848718,20.0,191.53,191.47,5.0]
[1736356848919,7.48281247,191.63,191.49,10.0]
[1736356849235,7.48281247,191.63,191.5,5.0]
[1736356849420,7.48281247,191.63,191.58,5.0]
[1736356849740,7.48281247,191.63,191.6,10.0]
[1736356850128,7.48281247,191.63,191.6,5.0]
[1736356850330,7.48281247,191.63,191.61,5.0]
[1736356850533,21.12064398,191.72,191.62,5.0]
[1736356851049,21.12064398,191.72,191.64,10.0]
[1736356851432,20.0,191.69,191.62,5.0]
[1736356851629,13.63783151,191.72,191.59,5.0]
[1736356851941,20.0,191.67,191.51,13.6251]
[1736356852134,20.0,191.63,191.5,12.4593]
[1736356852516,20.0,191.63,191.51,5.0]
[1736356853034,20.0,191.65,191.51,10.0]
[1736356853225,27.48281247,191.65,191.51,5.0]
[1736356853419,57.48281247,191.65,191.5,12.4593]
[1736356853831,20.0,191.58,191.44,16.6265]
[1736356854026,20.0,191.58,191.45,5.0]
[1736356854827,20.0,191.56,191.45,5.0]
[1736356855029,20.0,191.56,191.46,5.0]
[1736356855551,20.0,191.56,191.48,5.0]
[1736356855720,7.48281247,191.56,191.51,5.0]
[1736356855921,7.48281247,191.56,191.51,10.0]
[1736356856138,7.48281247,191.56,191.44,12.9533]
[1736356856139,7.48281247,191.56,191.55,10.0]
[1736356856516,20.0,191.57,191.55,10.0]
[1736356856744,13.75267526,191.6,191.56,33.776884]
[1736356856918,13.75267526,191.6,191.59,10.0]
[1736356857222,7.48281247,191.68,191.62,10.0]
[1736356857419,7.48281247,191.68,191.65,5.0]
[1736356857619,7.48281247,191.68,191.66,5.0]
[1736356858033,20.0,191.7,191.65,5.0]
[1736356858233,7.48281247,191.73,191.69,5.0]
[1736356858448,7.48281247,191.73,191.72,5.0]
[1736356858831,7.48281247,191.73,191.69,5.0]
[1736356859149,7.48281247,191.73,191.67,5.0]
[1736356859342,7.48281247,191.73,191.63,10.0]
[1736356859543,7.48281247,191.76,191.64,5.0]
[1736356859723,7.48281247,191.76,191.64,10.0]
[1736356859724,20.0,191.73,191.64,10.0]
[1736356859925,20.0,191.73,191.67,5.0]
[1736356860124,7.48281247,191.78,191.68,5.0]
[1736356860347,7.48281247,191.78,191.69,10.0]
[1736356860553,7.48281247,191.78,191.71,5.0]
[1736356860754,7.48281247,191.78,191.7,5.0]
[1736356861050,7.48281247,191.78,191.7,10.0]
[1736356861244,7.48281247,191.78,191.68,5.0]
[1736356861445,13.80563648,191.79,191.63,5.0]
[1736356861631,20.0,191.76,191.6,5.0]
[1736356861831,20.0,191.74,191.59,5.0]
[1736356862166,20.0,191.74,191.6,5.0]
[1736356862341,50.0,191.74,191.58,13.2062]
[1736356862649,50.0,191.74,191.58,23.2062]
[1736356863018,20.0,191.73,191.6,5.0]
[1736356863223,57.48281247,191.73,191.58,13.2062]
[1736356863456,20.0,191.66,191.52,5.0]
[1736356863627,50.0,191.66,191.48,5.0]
[1736356863939,50.0,191.66,191.5,10.0]
[1736356864130,7.48281247,191.67,191.51,10.0]
[1736356864333,7.48281247,191.67,191.55,5.0]
[1736356864538,7.48281247,191.63,191.54,5.0]
[1736356864846,20.0,191.6,191.54,5.0]
[1736356865055,20.0,191.6,191.53,5.0]
[1736356865227,20.0,191.6,191.47,5.0]
[1736356865546,20.0,191.6,191.45,22.1507]
[1736356865751,20.0,191.57,191.45,22.1507]
[1736356865923,20.0,191.57,191.46,5.0]
[1736356866353,20.0,191.57,191.42,5.0]
[1736356866667,20.0,191.53,191.41,5.0]
[1736356867363,50.0,191.53,191.39,22.7994]
[1736356867647,7.48281247,191.55,191.42,5.0]
[1736356868030,30.0,191.54,191.39,17.7994]
[1736356868227,30.0,191.54,191.39,12.7994]
[1736356868429,30.0,191.5,191.33,18.1637]
[1736356868636,30.0,191.48,191.33,18.1637]
[1736356869357,30.0,191.5,191.34,10.0]
[1736356869560,30.0,191.5,191.36,5.0]
[1736356869757,7.48281247,191.48,191.36,5.0]
[1736356869961,7.48281247,191.48,191.35,5.0]
[1736356870262,20.0,191.45,191.36,3.5]
[1736356870447,20.0,191.45,191.36,8.5]
[1736356870642,20.0,191.47,191.32,3.5]
[1736356870951,20.0,191.39,191.29,3.5]
[1736356871158,20.0,191.39,191.27,5.0]
[1736356871360,16.9126,191.42,191.26,5.0]
[1736356871361,30.0,191.41,191.26,5.0]
[1736356871548,20.0,191.37,191.26,5.0]
[1736356871964,30.0,191.41,191.2,5.0]
[1736356872461,30.0,191.35,191.23,5.0]
[1736356872665,30.0,191.35,191.19,5.82386364]
[1736356872845,20.0,191.34,191.19,0.82386364]
[1736356873046,20.0,191.32,191.22,5.0]
[1736356873354,20.0,191.3,191.19,0.82386364]
[1736356873556,20.0,191.28,191.19,0.82386364]
[1736356873768,20.0,191.26,191.19,0.82386364]
[1736356873946,30.0,191.29,191.19,0.82386364]
[1736356874265,20.0,191.22,191.19,0.82386364]
[1736356874463,23.776884,191.21,191.19,0.82386364]
[1736356874650,20.0,191.18,191.16,20.0]
[1736356874853,20.0,191.17,191.16,20.0]
[1736356875153,20.0,191.17,191.16,16.0863]
[1736356875356,20.0,191.17,191.16,12.1726]
[1736356875540,50.0,191.17,191.16,12.1726]
[1736356875739,73.776884,191.17,191.16,8.8603]
[1736356876357,50.0,191.17,191.16,8.8603]
[1736356876570,73.776884,191.17,191.16,8.8603]
[1736356876862,30.0,191.17,191.15,35.08432018]
[1736356877447,30.0,191.2,191.15,35.08432018]
[1736356877644,261.47150512,191.27,191.15,35.08432018]
[1736356877851,30.0,191.24,191.15,35.08432018]
[1736356878065,20.0,191.17,191.15,35.08432018]
[1736356878369,30.0,191.2,191.15,35.08432018]
[1736356878670,20.0,191.17,191.15,35.08432018]
[1736356879164,30.0,191.22,191.15,35.08432018]
[1736356879375,20.0,191.19,191.15,35.08432018]
[1736356879557,30.0,191.23,191.15,35.08432018]
[1736356879762,20.0,191.22,191.15,35.08432018]
[1736356879966,261.47150512,191.27,191.15,35.08432018]
[1736356880270,30.0,191.28,191.19,5.0]
[1736356880451,30.0,191.3,191.24,5.0]
[1736356880647,30.0,191.3,191.28,5.0]
[1736356880849,30.0,191.35,191.31,5.0]
[1736356881050,30.0,191.37,191.33,5.0]
[1736356881275,30.0,191.37,191.15,35.08432018]
[1736356881276,30.0,191.4,191.35,5.0]
[1736356881485,30.0,191.45,191.33,5.0]
[1736356881685,30.0,191.45,191.27,3.8846]
[1736356881686,20.0,191.42,191.37,5.0]
[1736356881990,37.48281247,191.48,191.42,5.0]
[1736356882187,30.0,191.48,191.44,5.0]
[1736356882352,30.0,191.5,191.41,5.0]
[1736356882693,30.0,191.5,191.32,12.3475]
[1736356882694,30.0,191.54,191.46,5.0]
[1736356882854,30.0,191.54,191.48,5.0]
[1736356883053,30.0,191.57,191.56,5.0]
[1736356883248,30.0,191.63,191.58,5.0]
[1736356883491,30.0,191.63,191.59,5.0]
[1736356883669,13.5334804,191.67,191.64,5.0]
[1736356883872,13.5334804,191.67,191.66,5.0]
[1736356884096,13.5334804,191.67,191.51,12.1717]
[1736356884588,13.5334804,191.67,191.52,23.776884]
[1736356884792,13.5334804,191.67,191.46,3.6652]
[1736356885294,20.0,191.64,191.46,3.6652]
[1736356885770,20.0,191.62,191.46,3.6652]
[1736356885971,20.0,191.6,191.46,3.6652]
[1736356886396,43.5334804,191.67,191.48,5.0]
[1736356886596,13.5334804,191.67,191.49,5.0]
[1736356886904,13.5334804,191.67,191.5,5.0]
[1736356887221,13.5334804,191.67,191.5,56.10244343]
[1736356887509,13.5334804,191.67,191.53,74.87932743]
[1736356887706,13.5334804,191.67,191.54,5.0]
[1736356887904,30.0,191.77,191.53,61.10244343]
[1736356888075,30.0,191.77,191.53,56.10244343]
[1736356888400,23.776884,191.69,191.46,3.6652]
[1736356888611,23.776884,191.67,191.49,5.0]
[1736356888813,30.0,191.7,191.49,5.0]
[1736356889114,20.0,191.67,191.47,56.10244343]
[1736356889292,20.0,191.66,191.46,3.6652]
[1736356889615,20.0,191.64,191.46,3.6652]
[1736356890003,20.0,191.62,191.46,3.6652]
[1736356890186,30.0,191.61,191.46,3.6652]
[1736356890390,30.0,191.59,191.36,3.5589]
[1736356890590,12.7068,191.64,191.36,3.5589]
[1736356890591,30.0,191.55,191.36,3.5589]
[1736356890894,30.0,191.57,191.36,3.5589]
[1736356891128,20.0,191.54,191.36,3.5589]
[1736356891425,20.0,191.48,191.36,3.5589]
[1736356891627,20.0,191.47,191.36,3.5589]
[1736356891937,23.776884,191.44,191.36,3.5589]
[1736356892089,43.83116925,191.47,191.36,3.5589]
[1736356892393,20.0,191.41,191.26,3.733]
[1736356892601,20.0,191.39,191.26,3.733]
[1736356893204,20.0,191.37,191.26,3.733]
[1736356893822,30.0,191.44,191.26,3.733]
[1736356894023,20.0,191.39,191.26,3.733]
[1736356894643,20.0,191.38,191.26,3.733]
[1736356895012,20.0,191.34,191.26,3.733]
[1736356895213,20.0,191.32,191.17,12.2415]
[1736356895413,20.0,191.28,191.17,12.2415]
[1736356895823,13.2221,191.39,191.17,12.2415]
[1736356896028,30.0,191.38,191.17,12.2415]
[1736356896231,20.0,191.36,191.17,68.34394343]
[1736356896432,13.2221,191.39,191.17,17.2415]
[1736356896637,20.0,191.36,191.17,73.34394343]
[1736356896842,20.0,191.36,191.18,23.776884]
[1736356897046,23.776884,191.35,191.17,12.2415]
[1736356897258,20.0,191.32,191.17,12.2415]
[1736356897552,20.0,191.28,191.17,12.2415]
[1736356898251,30.0,191.38,191.17,12.2415]
[1736356898449,20.0,191.36,191.18,23.776884]
[1736356898677,20.0,191.35,191.17,12.2415]
[1736356898843,23.776884,191.37,191.17,12.2415]
[1736356899037,20.0,191.34,191.17,12.2415]
[1736356899861,5.0,191.45,191.17,12.2415]
[1736356899862,30.0,191.41,191.2,23.776884]
[1736356900463,20.0,191.35,191.18,51.10244343]
[1736356900651,20.0,191.35,191.17,63.34394343]
[1736356900853,20.0,191.35,191.17,12.2415]
[1736356901160,23.776884,191.34,191.17,12.2415]
[1736356901363,20.0,191.27,191.15,35.08432018]
[1736356901950,30.0,191.32,191.15,35.08432018]
[1736356902157,20.0,191.27,191.15,35.08432018]
[1736356902958,30.0,191.36,191.15,35.08432018]
[1736356903159,30.0,191.38,191.16,74.87932743]
[1736356903673,13.2221,191.39,191.18,23.776884]
[1736356903842,13.2221,191.39,191.23,64.37724343]
[1736356904049,13.2221,191.39,191.23,13.2748]
[1736356905256,20.0,191.36,191.23,13.2748]
[1736356905663,20.0,191.35,191.23,13.2748]
[1736356906358,13.2221,191.39,191.23,13.2748]
[1736356906759,13.2221,191.39,191.26,23.776884]
[1736356906959,13.83116925,191.47,191.3,51.10244343]